[Event "Late-Titled-Tuesday-Blitz-February-20-2024"]
[Site "Chess.com"]
[Date "2024.02.20"]
[Round "7"]
[White "maxip32"]
[Black "Grischuk"]
[Result "1/2-1/2"]
[WhiteElo "2660"]
[BlackElo "3048"]
[TimeControl "180+1"]
[EndTime "15:17:30 PST"]
[Termination "Game drawn by repetition"]

1. e4 {[%clk 0:03:00.9]} 1... c5 {[%clk 0:03:00.2]} 2. Nf3 {[%clk 0:03:00.9]}
2... Nc6 {[%clk 0:02:59.5]} 3. Bb5 {[%clk 0:02:59.9]} 3... e6 {[%clk 0:02:58.6]}
4. O-O {[%clk 0:02:51]} 4... Nge7 {[%clk 0:02:58.2]} 5. d4 {[%clk 0:02:51.2]}
5... cxd4 {[%clk 0:02:57.8]} 6. Nxd4 {[%clk 0:02:52.1]} 6... Ng6 {[%clk
0:02:57.2]} 7. Nc3 {[%clk 0:02:47.3]} 7... Be7 {[%clk 0:02:56.9]} 8. Be3 {[%clk
0:02:45.3]} 8... O-O {[%clk 0:02:56.4]} 9. a4 {[%clk 0:02:38.3]} 9... Qc7 {[%clk
0:02:48.5]} 10. Be2 {[%clk 0:02:26.2]} 10... b6 {[%clk 0:02:43.2]} 11. Kh1
{[%clk 0:02:19.9]} 11... Bb7 {[%clk 0:02:06.3]} 12. Ndb5 {[%clk 0:02:14.4]}
12... Qb8 {[%clk 0:02:06.6]} 13. f4 {[%clk 0:02:06.9]} 13... a6 {[%clk 0:02:04]}
14. Na3 {[%clk 0:02:04.9]} 14... Bc5 {[%clk 0:01:45.5]} 15. Qd2 {[%clk
0:02:02.4]} 15... f6 {[%clk 0:01:11.4]} 16. Nc4 {[%clk 0:01:52.8]} 16... Qc7
{[%clk 0:01:11.8]} 17. Bxc5 {[%clk 0:01:50.8]} 17... bxc5 {[%clk 0:01:11.9]} 18.
Qd6 {[%clk 0:01:50.8]} 18... Qxd6 {[%clk 0:01:04.2]} 19. Nxd6 {[%clk 0:01:51.7]}
19... Rfb8 {[%clk 0:01:04.2]} 20. b3 {[%clk 0:01:25.2]} 20... Nd4 {[%clk
0:01:01.6]} 21. Bd3 {[%clk 0:01:24.8]} 21... Kf8 {[%clk 0:01:01.6]} 22. Ne2
{[%clk 0:01:23.8]} 22... Ke7 {[%clk 0:00:55.7]} 23. Nxb7 {[%clk 0:01:22.1]}
23... Rxb7 {[%clk 0:00:56.6]} 24. Nxd4 {[%clk 0:01:20.6]} 24... cxd4 {[%clk
0:00:57.5]} 25. g3 {[%clk 0:01:19.9]} 25... a5 {[%clk 0:00:56.7]} 26. Rfd1
{[%clk 0:01:15.3]} 26... Rc7 {[%clk 0:00:47.7]} 27. h4 {[%clk 0:01:04.2]} 27...
e5 {[%clk 0:00:45.3]} 28. f5 {[%clk 0:00:55.8]} 28... Nf8 {[%clk 0:00:45.6]} 29.
g4 {[%clk 0:00:55.2]} 29... d6 {[%clk 0:00:41.1]} 30. g5 {[%clk 0:00:53.6]}
30... Nd7 {[%clk 0:00:41.4]} 31. Rg1 {[%clk 0:00:53.4]} 31... Nc5 {[%clk
0:00:41.3]} 32. Bc4 {[%clk 0:00:38.7]} 32... Rac8 {[%clk 0:00:30.6]} 33. Rae1
{[%clk 0:00:30.9]} 33... Rf8 {[%clk 0:00:15.9]} 34. Rg4 {[%clk 0:00:22.1]} 34...
g6 {[%clk 0:00:11.9]} 35. gxf6+ {[%clk 0:00:20.5]} 35... Rxf6 {[%clk 0:00:12.8]}
36. Reg1 {[%clk 0:00:20.3]} 36... Kf8 {[%clk 0:00:05.4]} 37. h5 {[%clk
0:00:19.6]} 37... Rg7 {[%clk 0:00:04.2]} 38. fxg6 {[%clk 0:00:18]} 38... hxg6
{[%clk 0:00:04.3]} 39. hxg6 {[%clk 0:00:17.8]} 39... Ke7 {[%clk 0:00:04.3]} 40.
Kh2 {[%clk 0:00:10.3]} 40... Rf3 {[%clk 0:00:03.5]} 41. R1g3 {[%clk 0:00:09.6]}
41... Rf2+ {[%clk 0:00:04.1]} 42. Rg2 {[%clk 0:00:10.1]} 42... Rf3 {[%clk
0:00:04.7]} 43. R2g3 {[%clk 0:00:10.6]} 43... Rf2+ {[%clk 0:00:05.1]} 44. Rg2
{[%clk 0:00:09.9]} 44... Rf3 {[%clk 0:00:05.1]} 45. Rh4 {[%clk 0:00:08.5]} 45...
Kf6 {[%clk 0:00:05.1]} 46. Rhg4 {[%clk 0:00:08]} 46... Ke7 {[%clk 0:00:03.3]}
1/2-1/2

[Event "Late-Titled-Tuesday-Blitz-February-20-2024"]
[Site "Chess.com"]
[Date "2024.02.20"]
[Round "7"]
[White "FredddieCroderg"]
[Black "laskakid"]
[Result "1-0"]
[WhiteElo "2213"]
[BlackElo "2338"]
[TimeControl "180+1"]
[EndTime "15:17:30 PST"]
[Termination "FredddieCroderg won on time"]

1. e4 {[%clk 0:02:58.4]} 1... e5 {[%clk 0:03:00.1]} 2. Nf3 {[%clk 0:02:56.9]}
2... Nf6 {[%clk 0:03:00.2]} 3. Bc4 {[%clk 0:02:55.7]} 3... Nxe4 {[%clk
0:02:57.2]} 4. Nc3 {[%clk 0:02:55.7]} 4... Nxc3 {[%clk 0:02:56.2]} 5. dxc3
{[%clk 0:02:55.8]} 5... f6 {[%clk 0:02:55.1]} 6. Nh4 {[%clk 0:02:55.7]} 6... g6
{[%clk 0:02:51.5]} 7. f4 {[%clk 0:02:54.9]} 7... Qe7 {[%clk 0:02:51.5]} 8. f5
{[%clk 0:02:54.6]} 8... Qg7 {[%clk 0:02:49.2]} 9. fxg6 {[%clk 0:02:53.3]} 9...
hxg6 {[%clk 0:02:49.2]} 10. Qg4 {[%clk 0:02:52.5]} 10... Kd8 {[%clk 0:02:49.4]}
11. Qg3 {[%clk 0:02:49.5]} 11... g5 {[%clk 0:02:42.3]} 12. Nf5 {[%clk
0:02:45.3]} 12... Qh7 {[%clk 0:02:42.1]} 13. Bd3 {[%clk 0:02:44.7]} 13... d5
{[%clk 0:02:35.3]} 14. Ne3 {[%clk 0:02:28.7]} 14... e4 {[%clk 0:02:15.2]} 15.
Be2 {[%clk 0:02:25.1]} 15... c6 {[%clk 0:02:07.7]} 16. Bd2 {[%clk 0:02:17.1]}
16... Qh4 {[%clk 0:02:02.9]} 17. O-O-O {[%clk 0:02:16]} 17... Be6 {[%clk
0:01:41]} 18. c4 {[%clk 0:02:08.1]} 18... Nd7 {[%clk 0:01:25.9]} 19. cxd5 {[%clk
0:02:06.4]} 19... cxd5 {[%clk 0:01:26.2]} 20. Be1 {[%clk 0:01:39.5]} 20... Qxg3
{[%clk 0:01:20.9]} 21. Bxg3 {[%clk 0:01:38]} 21... Nb6 {[%clk 0:01:11.5]} 22. c4
{[%clk 0:01:36.4]} 22... Rc8 {[%clk 0:00:57.1]} 23. Kb1 {[%clk 0:01:36.2]} 23...
Bc5 {[%clk 0:00:51.8]} 24. Nxd5 {[%clk 0:01:34.3]} 24... Nxd5 {[%clk 0:00:49.4]}
25. cxd5 {[%clk 0:01:34.3]} 25... Bd7 {[%clk 0:00:44.1]} 26. Rhf1 {[%clk
0:01:32.1]} 26... f5 {[%clk 0:00:43]} 27. Be5 {[%clk 0:01:27.1]} 27... Rg8
{[%clk 0:00:37.4]} 28. d6 {[%clk 0:01:21.8]} 28... f4 {[%clk 0:00:33.1]} 29. Bc4
{[%clk 0:01:17.2]} 29... Rg6 {[%clk 0:00:27.6]} 30. Bf7 {[%clk 0:01:14]} 30...
Rh6 {[%clk 0:00:27.2]} 31. h4 {[%clk 0:01:07.4]} 31... Bg4 {[%clk 0:00:19.6]}
32. hxg5 {[%clk 0:01:03.1]} 32... Rh2 {[%clk 0:00:16.4]} 33. Bxf4 {[%clk
0:00:36.1]} 33... Rxg2 {[%clk 0:00:16.5]} 34. Rc1 {[%clk 0:00:26.2]} 34... Bf5
{[%clk 0:00:14.8]} 35. Ka1 {[%clk 0:00:24.9]} 35... e3 {[%clk 0:00:11.3]} 36. g6
{[%clk 0:00:19.9]} 36... e2 {[%clk 0:00:10.7]} 37. g7 {[%clk 0:00:16.1]} 37...
exf1=Q {[%clk 0:00:07.8]} 38. Rxf1 {[%clk 0:00:15.8]} 38... Rxg7 {[%clk
0:00:07.4]} 39. Bh5 {[%clk 0:00:14.8]} 39... Kd7 {[%clk 0:00:05.5]} 40. Be5
{[%clk 0:00:14.5]} 40... Rg5 {[%clk 0:00:04.8]} 41. Bf3 {[%clk 0:00:12.5]} 41...
Bxd6 {[%clk 0:00:04.4]} 42. Bd4 {[%clk 0:00:11.6]} 42... b6 {[%clk 0:00:03.4]}
43. Bb7 {[%clk 0:00:11]} 43... Rc7 {[%clk 0:00:03.2]} 44. Ba6 {[%clk 0:00:11.7]}
44... Rc2 {[%clk 0:00:03]} 45. Bb5+ {[%clk 0:00:11.9]} 45... Ke7 {[%clk
0:00:02.8]} 46. Re1+ {[%clk 0:00:12.4]} 46... Kf7 {[%clk 0:00:02.2]} 47. Ba4
{[%clk 0:00:12]} 47... Rd2 {[%clk 0:00:01.4]} 48. Bb3+ {[%clk 0:00:11.1]} 1-0

[Event "Late-Titled-Tuesday-Blitz-February-20-2024"]
[Site "Chess.com"]
[Date "2024.02.20"]
[Round "7"]
[White "Alphafischer2019"]
[Black "MeisterJabo"]
[Result "1-0"]
[WhiteElo "2679"]
[BlackElo "2446"]
[TimeControl "180+1"]
[EndTime "15:17:39 PST"]
[Termination "Alphafischer2019 won by checkmate"]

1. e4 {[%clk 0:02:59.7]} 1... e5 {[%clk 0:02:59.8]} 2. Nc3 {[%clk 0:02:56.2]}
2... Nf6 {[%clk 0:02:58.4]} 3. g3 {[%clk 0:02:56.8]} 3... Nc6 {[%clk 0:02:58.2]}
4. Bg2 {[%clk 0:02:57.1]} 4... Bc5 {[%clk 0:02:58]} 5. Nge2 {[%clk 0:02:53.5]}
5... O-O {[%clk 0:02:57.6]} 6. O-O {[%clk 0:02:54.1]} 6... a6 {[%clk 0:02:57.7]}
7. d3 {[%clk 0:02:47.5]} 7... Ne7 {[%clk 0:02:51.8]} 8. Bg5 {[%clk 0:02:42.9]}
8... Ne8 {[%clk 0:02:33.4]} 9. d4 {[%clk 0:02:35.7]} 9... exd4 {[%clk
0:02:30.6]} 10. Nxd4 {[%clk 0:02:34]} 10... h6 {[%clk 0:02:21.5]} 11. Be3 {[%clk
0:02:31.1]} 11... d6 {[%clk 0:02:21.1]} 12. Qd2 {[%clk 0:02:16]} 12... Bd7
{[%clk 0:01:59.9]} 13. h3 {[%clk 0:02:13.5]} 13... Nc6 {[%clk 0:01:37.6]} 14.
Nxc6 {[%clk 0:02:03.5]} 14... Bxe3 {[%clk 0:01:36.9]} 15. Qxe3 {[%clk
0:01:46.2]} 15... Bxc6 {[%clk 0:01:36.7]} 16. Rad1 {[%clk 0:01:44.1]} 16... Qe7
{[%clk 0:01:35.4]} 17. f4 {[%clk 0:01:32.8]} 17... Nf6 {[%clk 0:01:34.4]} 18.
Rfe1 {[%clk 0:01:27.8]} 18... Rfe8 {[%clk 0:01:33.4]} 19. g4 {[%clk 0:01:26.6]}
19... Nd7 {[%clk 0:01:20.3]} 20. Qg3 {[%clk 0:01:25.7]} 20... g5 {[%clk
0:01:11.1]} 21. Ne2 {[%clk 0:00:56.4]} 21... Qf6 {[%clk 0:01:08.5]} 22. fxg5
{[%clk 0:00:39.3]} 22... hxg5 {[%clk 0:01:04.3]} 23. Nd4 {[%clk 0:00:39.9]}
23... Bxe4 {[%clk 0:01:01.4]} 24. Rxe4 {[%clk 0:00:32.6]} 24... Rxe4 {[%clk
0:01:02.3]} 25. Bxe4 {[%clk 0:00:32.5]} 25... Re8 {[%clk 0:00:58.4]} 26. Bg2
{[%clk 0:00:30.4]} 26... Ne5 {[%clk 0:00:43.5]} 27. Qf2 {[%clk 0:00:27]} 27...
Qh8 {[%clk 0:00:40.8]} 28. Rf1 {[%clk 0:00:25.4]} 28... Qh7 {[%clk 0:00:36.3]}
29. Nf5 {[%clk 0:00:21.6]} 29... Ng6 {[%clk 0:00:34]} 30. Nh6+ {[%clk
0:00:18.3]} 30... Kh8 {[%clk 0:00:13.2]} 31. Qf6+ {[%clk 0:00:18.1]} 31... Qg7
{[%clk 0:00:12.3]} 32. Nxf7+ {[%clk 0:00:18.4]} 32... Kg8 {[%clk 0:00:10]} 33.
Qxg7+ {[%clk 0:00:17.4]} 33... Kxg7 {[%clk 0:00:10.9]} 34. Nxg5 {[%clk 0:00:18]}
34... Re2 {[%clk 0:00:11]} 35. Rf2 {[%clk 0:00:17.6]} 35... Re1+ {[%clk
0:00:11.2]} 36. Kh2 {[%clk 0:00:18.1]} 36... Ne5 {[%clk 0:00:11.6]} 37. Nf3
{[%clk 0:00:18.2]} 37... Rc1 {[%clk 0:00:11.8]} 38. Nxe5 {[%clk 0:00:18.4]}
38... dxe5 {[%clk 0:00:12.7]} 39. Be4 {[%clk 0:00:18.9]} 39... c6 {[%clk
0:00:12.9]} 40. h4 {[%clk 0:00:19.4]} 40... Re1 {[%clk 0:00:12.9]} 41. Bf5
{[%clk 0:00:19.1]} 41... e4 {[%clk 0:00:11.8]} 42. g5 {[%clk 0:00:19.8]} 42...
e3 {[%clk 0:00:12.7]} 43. Rg2 {[%clk 0:00:20.4]} 43... e2 {[%clk 0:00:12.8]} 44.
Kg3 {[%clk 0:00:18.7]} 44... Rf1 {[%clk 0:00:12.3]} 45. Rxe2 {[%clk 0:00:19.3]}
45... Rxf5 {[%clk 0:00:12.6]} 46. Re7+ {[%clk 0:00:16.9]} 46... Kg6 {[%clk
0:00:13]} 47. Kg4 {[%clk 0:00:17.4]} 47... Rf7 {[%clk 0:00:07.3]} 48. h5+ {[%clk
0:00:17.3]} 48... Kg7 {[%clk 0:00:07.8]} 49. h6+ {[%clk 0:00:17.7]} 49... Kg6
{[%clk 0:00:08.4]} 50. Rxf7 {[%clk 0:00:18.6]} 50... Kxf7 {[%clk 0:00:09.3]} 51.
Kf5 {[%clk 0:00:19.3]} 51... b5 {[%clk 0:00:08.6]} 52. g6+ {[%clk 0:00:20.2]}
52... Kg8 {[%clk 0:00:08.7]} 53. Kf6 {[%clk 0:00:20.9]} 53... c5 {[%clk
0:00:09.1]} 54. h7+ {[%clk 0:00:21.5]} 54... Kh8 {[%clk 0:00:09.7]} 55. Kf7
{[%clk 0:00:22.2]} 55... c4 {[%clk 0:00:08.6]} 56. g7+ {[%clk 0:00:23.1]} 56...
Kxh7 {[%clk 0:00:09.4]} 57. g8=Q+ {[%clk 0:00:24]} 57... Kh6 {[%clk 0:00:09.8]}
58. Qg6# {[%clk 0:00:24.9]} 1-0

[Event "Late-Titled-Tuesday-Blitz-February-20-2024"]
[Site "Chess.com"]
[Date "2024.02.20"]
[Round "7"]
[White "northridgehawk"]
[Black "WindWhistler11"]
[Result "0-1"]
[WhiteElo "2278"]
[BlackElo "2499"]
[TimeControl "180+1"]
[EndTime "15:17:40 PST"]
[Termination "WindWhistler11 won by checkmate"]

1. e4 {[%clk 0:02:47.5]} 1... e6 {[%clk 0:03:00.4]} 2. d4 {[%clk 0:02:47.3]}
2... d5 {[%clk 0:03:01.1]} 3. exd5 {[%clk 0:02:45.4]} 3... exd5 {[%clk
0:03:01.2]} 4. Nf3 {[%clk 0:02:45.9]} 4... Nc6 {[%clk 0:03:01.8]} 5. c4 {[%clk
0:02:45.6]} 5... Bb4+ {[%clk 0:03:01.4]} 6. Nc3 {[%clk 0:02:45.6]} 6... Nf6
{[%clk 0:03:02.1]} 7. c5 {[%clk 0:02:45.7]} 7... Bg4 {[%clk 0:03:02.3]} 8. Be2
{[%clk 0:02:45.8]} 8... O-O {[%clk 0:02:59.7]} 9. O-O {[%clk 0:02:45.8]} 9... b6
{[%clk 0:02:59.3]} 10. cxb6 {[%clk 0:02:39.6]} 10... axb6 {[%clk 0:02:58.7]} 11.
Bf4 {[%clk 0:02:39.6]} 11... Nh5 {[%clk 0:02:54.4]} 12. Be3 {[%clk 0:02:38.8]}
12... Bxc3 {[%clk 0:02:44.1]} 13. bxc3 {[%clk 0:02:30.6]} 13... Nf6 {[%clk
0:02:45]} 14. h3 {[%clk 0:02:28.6]} 14... Bf5 {[%clk 0:02:42.3]} 15. Bb5 {[%clk
0:02:27.1]} 15... Na7 {[%clk 0:02:34.5]} 16. Be2 {[%clk 0:02:21.8]} 16... Ne4
{[%clk 0:02:28.1]} 17. Qb3 {[%clk 0:02:16]} 17... Re8 {[%clk 0:02:15]} 18. a4
{[%clk 0:02:08.3]} 18... Nc6 {[%clk 0:02:14.2]} 19. Bb5 {[%clk 0:02:07.7]} 19...
Na5 {[%clk 0:02:14.2]} 20. Qa3 {[%clk 0:02:02.4]} 20... Re6 {[%clk 0:02:13.6]}
21. Rfd1 {[%clk 0:01:55.4]} 21... Nd6 {[%clk 0:01:45.9]} 22. Qb4 {[%clk
0:01:52.5]} 22... Be4 {[%clk 0:01:39.4]} 23. Ne5 {[%clk 0:01:51.4]} 23... f6
{[%clk 0:01:36.2]} 24. Nd3 {[%clk 0:01:39]} 24... Nxb5 {[%clk 0:01:09.5]} 25.
axb5 {[%clk 0:01:38.3]} 25... Bxd3 {[%clk 0:01:02.2]} 26. Rxd3 {[%clk 0:01:38]}
26... Qe8 {[%clk 0:00:59.2]} 27. Qa4 {[%clk 0:01:24.2]} 27... Re4 {[%clk
0:00:49.4]} 28. Rdd1 {[%clk 0:01:07.6]} 28... Rd8 {[%clk 0:00:45.4]} 29. Qc2
{[%clk 0:00:49.4]} 29... Rd7 {[%clk 0:00:39.3]} 30. Re1 {[%clk 0:00:34.7]} 30...
Rde7 {[%clk 0:00:37.5]} 31. Kf1 {[%clk 0:00:24.9]} 31... Qxb5+ {[%clk
0:00:36.9]} 32. Kg1 {[%clk 0:00:24.5]} 32... f5 {[%clk 0:00:26]} 33. Bf4 {[%clk
0:00:12]} 33... Qe8 {[%clk 0:00:15.8]} 34. Be5 {[%clk 0:00:10.4]} 34... Nc4
{[%clk 0:00:14.3]} 35. f3 {[%clk 0:00:09.6]} 35... Rxe1+ {[%clk 0:00:13.2]} 36.
Rxe1 {[%clk 0:00:10.5]} 36... Nxe5 {[%clk 0:00:13.8]} 37. Qxf5 {[%clk
0:00:10.9]} 37... Nxf3+ {[%clk 0:00:13]} 38. Kf2 {[%clk 0:00:07.9]} 38... Nxe1
{[%clk 0:00:11.5]} 39. Qxd5+ {[%clk 0:00:08.2]} 39... Kh8 {[%clk 0:00:11.8]} 40.
Kg1 {[%clk 0:00:08.6]} 40... Nd3 {[%clk 0:00:11.4]} 41. Qc4 {[%clk 0:00:08.6]}
41... Nf4 {[%clk 0:00:11.4]} 42. Kh2 {[%clk 0:00:09]} 42... Ne2 {[%clk
0:00:11.3]} 43. Qd5 {[%clk 0:00:09.3]} 43... c6 {[%clk 0:00:11.5]} 44. Qg5
{[%clk 0:00:08.9]} 44... Qb8+ {[%clk 0:00:09.3]} 45. Kh1 {[%clk 0:00:08.4]}
45... Ng3+ {[%clk 0:00:09.2]} 46. Kg1 {[%clk 0:00:08.5]} 46... Re1+ {[%clk
0:00:09.2]} 47. Kf2 {[%clk 0:00:09.1]} 47... Rf1+ {[%clk 0:00:06.3]} 48. Ke3
{[%clk 0:00:09.4]} 48... Qe8+ {[%clk 0:00:05.6]} 49. Kd3 {[%clk 0:00:09.1]}
49... Qe2# {[%clk 0:00:04.4]} 0-1

[Event "Late-Titled-Tuesday-Blitz-February-20-2024"]
[Site "Chess.com"]
[Date "2024.02.20"]
[Round "7"]
[White "CarlosjPineror"]
[Black "pavet"]
[Result "1-0"]
[WhiteElo "2584"]
[BlackElo "2734"]
[TimeControl "180+1"]
[EndTime "15:17:41 PST"]
[Termination "CarlosjPineror won by checkmate"]

1. e4 {[%clk 0:02:50.6]} 1... e5 {[%clk 0:03:00]} 2. Nf3 {[%clk 0:02:50.8]} 2...
Nc6 {[%clk 0:02:57]} 3. d4 {[%clk 0:02:51.1]} 3... exd4 {[%clk 0:02:57.1]} 4.
Bc4 {[%clk 0:02:51.7]} 4... Nf6 {[%clk 0:02:57.4]} 5. e5 {[%clk 0:02:51.1]} 5...
d5 {[%clk 0:02:57.6]} 6. Bb5 {[%clk 0:02:50.5]} 6... Ne4 {[%clk 0:02:57.6]} 7.
Nxd4 {[%clk 0:02:50.6]} 7... Bd7 {[%clk 0:02:57.8]} 8. O-O {[%clk 0:02:44.6]}
8... Bc5 {[%clk 0:02:53.1]} 9. Bxc6 {[%clk 0:02:36.8]} 9... bxc6 {[%clk
0:02:52.9]} 10. Be3 {[%clk 0:02:36.7]} 10... O-O {[%clk 0:02:50.8]} 11. f3
{[%clk 0:02:34.5]} 11... Ng5 {[%clk 0:02:50.6]} 12. f4 {[%clk 0:02:32.5]} 12...
Ne4 {[%clk 0:02:50.7]} 13. Nd2 {[%clk 0:02:30]} 13... Nxd2 {[%clk 0:02:49.5]}
14. Qxd2 {[%clk 0:02:30.9]} 14... Bb6 {[%clk 0:02:49.9]} 15. Nb3 {[%clk
0:02:23.1]} 15... f6 {[%clk 0:02:50]} 16. Bd4 {[%clk 0:02:20.1]} 16... fxe5
{[%clk 0:02:49.6]} 17. fxe5 {[%clk 0:02:18.8]} 17... Qh4 {[%clk 0:02:49.7]} 18.
a4 {[%clk 0:02:14]} 18... Rab8 {[%clk 0:02:44.9]} 19. Nc5 {[%clk 0:02:06.2]}
19... h6 {[%clk 0:02:04.3]} 20. a5 {[%clk 0:02:06.1]} 20... Bxc5 {[%clk
0:02:04]} 21. Bxc5 {[%clk 0:02:06.8]} 21... Rxf1+ {[%clk 0:02:03.4]} 22. Rxf1
{[%clk 0:02:06.4]} 22... Rxb2 {[%clk 0:01:56.2]} 23. Qd3 {[%clk 0:01:54.2]}
23... Qe4 {[%clk 0:01:51.3]} 24. Qxe4 {[%clk 0:01:53.2]} 24... dxe4 {[%clk
0:01:51.4]} 25. Rf8+ {[%clk 0:01:54.1]} 25... Kh7 {[%clk 0:01:51.6]} 26. Rf7
{[%clk 0:01:54.8]} 26... Be6 {[%clk 0:01:46.9]} 27. Rxc7 {[%clk 0:01:51.1]}
27... Rxc2 {[%clk 0:01:45.7]} 28. Bxa7 {[%clk 0:01:48.6]} 28... Bd5 {[%clk
0:01:40.9]} 29. e6 {[%clk 0:01:44.8]} 29... Bxe6 {[%clk 0:01:36.9]} 30. Bd4
{[%clk 0:01:42.8]} 30... Kg6 {[%clk 0:01:36.3]} 31. a6 {[%clk 0:01:39.2]} 31...
Bd5 {[%clk 0:01:28.3]} 32. Rxg7+ {[%clk 0:01:33.1]} 32... Kf5 {[%clk 0:01:28.2]}
33. a7 {[%clk 0:01:30.8]} 33... Ra2 {[%clk 0:01:26.2]} 34. h3 {[%clk 0:01:27.9]}
34... h5 {[%clk 0:01:23]} 35. Rh7 {[%clk 0:01:13.9]} 35... e3 {[%clk 0:01:10.6]}
36. Bxe3 {[%clk 0:01:13.5]} 36... Rxg2+ {[%clk 0:01:10.2]} 37. Kf1 {[%clk
0:01:14.2]} 37... Ra2 {[%clk 0:01:07.7]} 38. Bc5 {[%clk 0:01:12.4]} 38... Bg2+
{[%clk 0:00:35.9]} 39. Ke1 {[%clk 0:01:09.8]} 39... Bxh3 {[%clk 0:00:32.8]} 40.
Rh8 {[%clk 0:01:08.8]} 40... Bg2 {[%clk 0:00:31.5]} 41. a8=Q {[%clk 0:01:07.7]}
41... Rxa8 {[%clk 0:00:32.2]} 42. Rxa8 {[%clk 0:01:07.9]} 42... Bd5 {[%clk
0:00:33.1]} 43. Rh8 {[%clk 0:01:07.6]} 43... Kg4 {[%clk 0:00:31.4]} 44. Kf2
{[%clk 0:01:08.1]} 44... h4 {[%clk 0:00:31.2]} 45. Be7 {[%clk 0:01:07.7]} 45...
h3 {[%clk 0:00:31.6]} 46. Rh4+ {[%clk 0:01:08.2]} 46... Kf5 {[%clk 0:00:32.1]}
47. Rxh3 {[%clk 0:01:08.4]} 47... Ke6 {[%clk 0:00:33]} 48. Bc5 {[%clk
0:01:08.3]} 48... Kf5 {[%clk 0:00:33.9]} 49. Ke3 {[%clk 0:01:08.3]} 49... Kg4
{[%clk 0:00:34.3]} 50. Rh8 {[%clk 0:01:07.4]} 50... Kf5 {[%clk 0:00:35.2]} 51.
Re8 {[%clk 0:01:07.2]} 51... Kf6 {[%clk 0:00:35.3]} 52. Kd4 {[%clk 0:01:06.6]}
52... Kf5 {[%clk 0:00:35.6]} 53. Re5+ {[%clk 0:01:06.8]} 53... Kf6 {[%clk
0:00:36.1]} 54. Bd6 {[%clk 0:01:06.4]} 54... Kg6 {[%clk 0:00:36.5]} 55. Ke3
{[%clk 0:01:06.3]} 55... Kf6 {[%clk 0:00:37.4]} 56. Kf4 {[%clk 0:01:06.9]} 56...
Kg6 {[%clk 0:00:37.8]} 57. Be7 {[%clk 0:01:07.3]} 57... Kf7 {[%clk 0:00:38]} 58.
Bh4 {[%clk 0:01:07.6]} 58... Kg6 {[%clk 0:00:33.2]} 59. Rf5 {[%clk 0:01:07.6]}
59... Kg7 {[%clk 0:00:31.3]} 60. Kg5 {[%clk 0:01:05.5]} 60... Be4 {[%clk
0:00:29]} 61. Rf6 {[%clk 0:01:04.9]} 61... Bd5 {[%clk 0:00:28.1]} 62. Bg3 {[%clk
0:01:05.2]} 62... Kg8 {[%clk 0:00:27.1]} 63. Be5 {[%clk 0:01:05.5]} 63... Be4
{[%clk 0:00:26.6]} 64. Bc3 {[%clk 0:01:06.4]} 64... Kh7 {[%clk 0:00:25.8]} 65.
Rh6+ {[%clk 0:01:03.9]} 65... Kg8 {[%clk 0:00:26.4]} 66. Kf6 {[%clk 0:01:00.3]}
66... Bh7 {[%clk 0:00:24.6]} 67. Bb4 {[%clk 0:00:57.2]} 67... Be4 {[%clk
0:00:24.3]} 68. Bc5 {[%clk 0:00:57.4]} 68... Bh7 {[%clk 0:00:23.9]} 69. Rh2
{[%clk 0:00:54.1]} 69... Be4 {[%clk 0:00:24.1]} 70. Rh4 {[%clk 0:00:54.5]} 70...
Bd5 {[%clk 0:00:23.4]} 71. Rg4+ {[%clk 0:00:52.9]} 71... Kh7 {[%clk 0:00:23.2]}
72. Rh4+ {[%clk 0:00:52.5]} 72... Kg8 {[%clk 0:00:23.5]} 73. Bd4 {[%clk
0:00:51.2]} 73... Bf3 {[%clk 0:00:17.7]} 74. Ke7 {[%clk 0:00:50.9]} 74... Bh5
{[%clk 0:00:14]} 75. Rxh5 {[%clk 0:00:51]} 75... c5 {[%clk 0:00:14.6]} 76. Rh8#
{[%clk 0:00:51.7]} 1-0